Workbook

Sheet School Info
A1: यहाँ अपने विद्यालय का विवरण भरे | Fill your school details here. | J1: TIME TABLE
R3: CLASS | S3: GENDER
A4: SCHOOL NAME | B4: Mahatma Gandhi Government School Bar | J4: SUBJECT NAME | K4: DATE | L4: DAY NAME | M4: TIME
A5: SCHOOL DISE CODE | B5: 123456890 | D5: SCHOOL BOARD CODE : | F5: 123456 | G5: EXAM NAME | H5: HALF YEARLY EXAM | J5: HINDI | K5: 2001-01-01 | L5: MONDAY | M5: 10:00AM TO 12:00PM | R5: PP3 | S5: MALE | T5: A
J6: ENGLISH | K6: 2001-01-01 | L6: TUESDAY | M6: 10:00AM TO 12:00PM | R6: PP4 | S6: FEMALE | T6: B
A7: CLASS | B7: 6 | D7: MEDIUM | E7: HINDI | F7: SECTION | G7: SESSION | H7: 2025-26 | J7: SCIENCE | K7: 2001-01-01 | L7: WEDNESDAY | M7: 10:00AM TO 12:00PM | R7: PP5 | T7: C
F8: A | J8: MATH | K8: 2001-01-01 | L8: THURSDAY | M8: 10:00AM TO 12:00PM | R8: 1 | T8: D
A9: https://youtu.be/GJhVBFWW4c4 | J9: SOCIAL SCIENCE | K9: 2001-01-01 | L9: FRIDAY | M9: 10:00AM TO 12:00PM | R9: 2 | S9: HINDI
J10: SANSKRIT | K10: 2001-01-01 | L10: SATURDAY | M10: 10:00AM TO 12:00PM | R10: 3 | S10: ENGLISH
K11: 2001-01-02 | L11: SUNDAY | M11: 10:00AM TO 12:00PM | R11: 4
K12: 2001-01-03 | L12: MONDAY | M12: 10:00AM TO 12:00PM
K13: 2001-01-04 | L13: TUESDAY | M13: 10:00AM TO 12:00PM
R14: 5
A15: Programming & Designing By : HEERALAL JAT Senior Teacher MGGS BAR , (Beawar) V./P. - Chandawal Nagar, Sojat , Pali | E15: SCHOOL LOGO : | R15: 6
E16: Sig. Principal : | R16: 7
E17: Sig. Exam Incharge : | R17: 8
G18: https://youtu.be/GJhVBFWW4c4 | R18: 9
R19: 10
A20: PASSWORD : | B20: Admitcard25 | E20: Youtube Video Link :- | M20: जय गुरुदेव | R20: 11
A21: If you want , otherwise don't use password | R21: 12

Sheet Data Sheet
A1: =IF('School Info'!$B$4="","",'School Info'!$B$4) -> Mahatma Gandhi Government School Bar
E2: Student Data Entry
A3: S NO | B3: SR NO | C3: ROLL NO | D3: DOB | E3: GENDER | F3: STUDENT NAME | G3: FATHER NAME | H3: MOTHER NAME | I3: PHOTO
A4: 1 | B4: 755 | C4: 101 | D4: 2001-01-01 | E4: MALE | F4: RAJ GURUJI | G4: RAJ | H4: DEVI
A5: 2 | B5: 852 | C5: 102 | D5: 2002-01-01 | E5: FEMALE | F5: lala | G5: RAAA | H5: DDD
A6: 3 | B6: 901 | C6: 103 | D6: 2003-01-01 | E6: FEMALE | F6: SONU | G6: AAA | H6: DDS
A7: 4 | B7: 222 | C7: 104 | D7: 2004-01-01 | E7: MALE | F7: KARNA | G7: BBB | H7: SSDDF
A8: 5 | B8: 333 | C8: 105 | D8: 2005-01-01 | E8: MALE | F8: RAJA | G8: DFD | H8: GAG
A9: 6 | B9: 444 | C9: 106 | D9: 2006-01-01 | E9: FEMALE | F9: RAJ GURUJI | G9: RAJ | H9: DEVI
A10: 7 | B10: 555 | C10: 107 | D10: 2007-01-01 | E10: MALE | F10: MONU | G10: RAAA | H10: DDD
A11: 8 | B11: 666 | C11: 108 | D11: 2008-01-01 | E11: FEMALE | F11: SONU | G11: AAA | H11: DDS
A12: 9 | B12: 777 | C12: 109 | D12: 2009-01-01 | E12: MALE | F12: KARNA | G12: BBB | H12: SSDDF
A13: 10 | B13: 888 | C13: 110 | D13: 2010-01-01 | E13: MALE | F13: RAJA | G13: DFD | H13: GAG
A14: 11 | B14: 111 | C14: 111 | D14: 2011-01-01 | E14: MALE | F14: RAJ GURUJI | G14: RAJ | H14: DEVI
A15: 12 | B15: 123 | C15: 112 | D15: 2012-01-01 | E15: MALE | F15: MONU | G15: RAAA | H15: DDD
A16: 13 | B16: A | C16: 113 | D16: 2013-01-01 | E16: MALE | F16: SONU | G16: AAA | H16: DDS
A17: 14 | B17: B | C17: 114 | D17: 2014-01-01 | E17: MALE | F17: KARNA | G17: BBB | H17: SSDDF
A18: 15 | B18: A | C18: 115 | D18: 2015-01-01 | E18: MALE | F18: RAJA | G18: DFD | H18: GAG
A19: 16 | B19: B | C19: 116 | D19: 2016-01-01 | E19: MALE | F19: RAJ GURUJI | G19: RAJ | H19: DEVI
A20: 17 | B20: A | C20: 117 | D20: 2017-01-01 | E20: MALE | F20: MONU | G20: RAAA | H20: DDD
A21: 18 | B21: B | C21: 118 | D21: 2018-01-01 | E21: MALE | F21: SONU | G21: AAA | H21: DDS
A22: 19 | C22: 119 | D22: 2019-01-01 | E22: MALE | F22: KARNA | G22: BBB | H22: SSDDF
A23: 20 | C23: 120 | D23: 2020-01-01 | E23: MALE | F23: RAJA | G23: DFD | H23: GAG
A24: 21 | C24: 121 | D24: 2021-01-01 | E24: MALE | F24: RAJ GURUJI | G24: RAJ | H24: DEVI
A25: 22 | C25: 122 | D25: 2022-01-01 | E25: MALE | F25: MONU | G25: RAAA | H25: DDD
A26: 23 | C26: 123 | D26: 2023-01-01 | E26: MALE | F26: SONU | G26: AAA | H26: DDS
A27: 24 | C27: 124 | D27: 2024-01-01 | E27: MALE | F27: KARNA | G27: BBB | H27: SSDDF
A28: 25 | C28: 125 | D28: 2025-01-01 | E28: MALE | F28: RAJA | G28: DFD | H28: GAG
A29: 26 | C29: 126 | D29: 2026-01-01 | E29: MALE | F29: RAJ GURUJI | G29: RAJ | H29: DEVI
A30: 27 | C30: 127 | D30: 2027-01-01 | E30: MALE | F30: ggggggggg | G30: RAAA | H30: DDD
A31: 28 | C31: 128 | D31: 2028-01-01 | E31: MALE | F31: SONU | G31: AAA | H31: DDS
A32: 29 | C32: 129 | D32: 2029-01-01 | E32: MALE | F32: KARNA | G32: BBB | H32: SSDDF
A33: 30 | C33: 130 | D33: 2030-01-01 | E33: MALE | F33: RAJA | G33: DFD | H33: GAG
A34: 31 | C34: 131 | D34: 2031-01-01 | E34: MALE | F34: RAJ GURUJI | G34: RAJ | H34: DEVI
A35: 32 | C35: 132 | D35: 2032-01-01 | E35: MALE | F35: MONU | G35: RAAA | H35: DDD
A36: 33 | C36: 133 | D36: 2033-01-01 | E36: MALE | F36: SONU | G36: AAA | H36: DDS
A37: 34 | C37: 134 | D37: 2034-01-01 | E37: MALE | F37: KARNA | G37: BBB | H37: SSDDF
A38: 35 | C38: 135 | D38: 2035-01-01 | E38: MALE | F38: RAJA | G38: DFD | H38: GAG
A39: 36 | C39: 136 | D39: 2036-01-01 | E39: MALE | F39: RAJ GURUJI | G39: RAJ | H39: DEVI
A40: 37 | C40: 137 | D40: 2037-01-01 | E40: MALE | F40: MONU | G40: RAAA | H40: DDD
A41: 38 | C41: 138 | D41: 2038-01-01 | E41: MALE | F41: SONU | G41: AAA | H41: DDS
A42: 39 | C42: 139 | D42: 2039-01-01 | E42: MALE | F42: KARNA | G42: BBB | H42: SSDDF
A43: 40 | C43: 140 | D43: 2040-01-01 | E43: MALE | F43: RAJA | G43: DFD | H43: GAG
A44: 41 | C44: 141 | D44: 2041-01-01 | E44: MALE | F44: RAJ GURUJI | G44: RAJ | H44: DEVI
A45: 42 | C45: 142 | D45: 2042-01-01 | E45: MALE | F45: MONU | G45: RAAA | H45: DDD
A46: 43 | C46: 143 | D46: 2043-01-01 | E46: MALE | F46: SONU | G46: AAA | H46: DDS
A47: 44 | C47: 144 | D47: 2044-01-01 | E47: MALE | F47: KARNA | G47: BBB | H47: SSDDF
A48: 45 | C48: 145 | D48: 2045-01-01 | E48: MALE | F48: RAJA | G48: DFD | H48: GAG
A49: 46 | C49: 146 | D49: 2046-01-01 | E49: MALE | F49: RAJ GURUJI | G49: RAJ | H49: DEVI
A50: 47 | C50: 147 | D50: 2047-01-01 | E50: MALE | F50: MONU | G50: RAAA | H50: DDD
A51: 48 | C51: 148 | D51: 2048-01-01 | E51: MALE | F51: SONU | G51: AAA | H51: DDS
A52: 49 | C52: 149 | D52: 2049-01-01 | E52: MALE | F52: KARNA | G52: BBB | H52: SSDDF
A53: 50 | C53: 150 | D53: 2050-01-01 | E53: MALE | F53: RAJA | G53: DFD | H53: GAG
A54: 51 | C54: 151 | D54: 2051-01-01 | E54: MALE | F54: RAJ GURUJI | G54: RAJ | H54: DEVI
A55: 52 | C55: 152 | D55: 2052-01-01 | E55: MALE | F55: MONU | G55: RAAA | H55: DDD
A56: 53 | C56: 153 | D56: 2053-01-01 | E56: MALE | F56: SONU | G56: AAA | H56: DDS
A57: 54 | C57: 154 | D57: 2054-01-01 | E57: MALE | F57: KARNA | G57: BBB | H57: SSDDF
A58: 55 | C58: 155 | D58: 2055-01-01 | E58: MALE | F58: RAJA | G58: DFD | H58: GAG
A59: 56 | C59: 156 | D59: 2056-01-01 | E59: MALE | F59: RAJ GURUJI | G59: RAJ | H59: DEVI
A60: 57 | C60: 157 | D60: 2057-01-01 | E60: MALE | F60: MONU | G60: RAAA | H60: DDD
A61: 58 | C61: 158 | D61: 2058-01-01 | E61: MALE | F61: SONU | G61: AAA | H61: DDS
A62: 59 | C62: 159 | D62: 2059-01-01 | E62: MALE | F62: KARNA | G62: BBB | H62: SSDDF
A63: 60 | C63: 160 | D63: 2060-01-01 | E63: MALE | F63: RAJA | G63: DFD | H63: GAG
A64: 61 | C64: 161 | D64: 2061-01-01 | E64: MALE | F64: RAJ GURUJI | G64: RAJ | H64: DEVI
A65: 62 | C65: 162 | D65: 2062-01-01 | E65: MALE | F65: MONU | G65: RAAA | H65: DDD
A66: 63 | C66: 163 | D66: 2063-01-01 | E66: MALE | F66: SONU | G66: AAA | H66: DDS
A67: 64 | C67: 164 | D67: 2064-01-01 | E67: MALE | F67: KARNA | G67: BBB | H67: SSDDF
A68: 65 | C68: 165 | D68: 2065-01-01 | E68: MALE | F68: RAJA | G68: DFD | H68: GAG
A69: 66 | C69: 166 | D69: 2066-01-01 | E69: MALE | F69: RAJ GURUJI | G69: RAJ | H69: DEVI
A70: 67 | C70: 167 | D70: 2067-01-01 | E70: MALE | F70: MONU | G70: RAAA | H70: DDD
A71: 68 | C71: 168 | D71: 2068-01-01 | E71: MALE | F71: SONU | G71: AAA | H71: DDS
A72: 69 | C72: 169 | D72: 2069-01-01 | E72: MALE | F72: KARNA | G72: BBB | H72: SSDDF
A73: 70 | C73: 170 | D73: 2070-01-01 | E73: MALE | F73: RAJA | G73: DFD | H73: GAG
A74: 71 | C74: 171 | D74: 2071-01-01 | E74: MALE | F74: RAJ GURUJI | G74: RAJ | H74: DEVI
A75: 72 | C75: 172 | D75: 2072-01-01 | E75: MALE | F75: MONU | G75: RAAA | H75: DDD
A76: 73 | C76: 173 | D76: 2073-01-01 | E76: MALE | F76: SONU | G76: AAA | H76: DDS
A77: 74 | C77: 174 | D77: 2074-01-01 | E77: MALE | F77: KARNA | G77: BBB | H77: SSDDF
A78: 75 | C78: 175 | D78: 2075-01-01 | E78: MALE | F78: RAJA | G78: DFD | H78: GAG
A79: 76 | C79: 176 | D79: 2076-01-01 | E79: MALE | F79: RAJ GURUJI | G79: RAJ | H79: DEVI
A80: 77 | C80: 177 | D80: 2077-01-01 | E80: MALE | F80: MONU | G80: RAAA | H80: DDD
A81: 78 | C81: 178 | D81: 2078-01-01 | E81: MALE | F81: SONU | G81: AAA | H81: DDS
A82: 79 | C82: 179 | D82: 2079-01-01 | E82: MALE | F82: KARNA | G82: BBB | H82: SSDDF
A83: 80 | C83: 180 | D83: 2080-01-01 | E83: MALE | F83: RAJA | G83: DFD | H83: GAG
A84: 81 | C84: 181 | D84: 2081-01-01 | E84: MALE | F84: RAJ GURUJI | G84: RAJ | H84: DEVI
A85: 82 | C85: 182 | D85: 2082-01-01 | E85: MALE | F85: MONU | G85: RAAA | H85: DDD
A86: 83 | C86: 183 | D86: 2083-01-01 | E86: MALE | F86: SONU | G86: AAA | H86: DDS
A87: 84 | C87: 184 | D87: 2084-01-01 | E87: MALE | F87: KARNA | G87: BBB | H87: SSDDF
A88: 85 | C88: 185 | D88: 2085-01-01 | E88: MALE | F88: RAJA | G88: DFD | H88: GAG
A89: 86 | C89: 186 | D89: 2086-01-01 | E89: MALE | F89: RAJ GURUJI | G89: RAJ | H89: DEVI
A90: 87 | C90: 187 | D90: 2087-01-01 | E90: MALE | F90: MONU | G90: RAAA | H90: DDD
A91: 88 | C91: 188 | D91: 2088-01-01 | E91: MALE | F91: SONU | G91: AAA | H91: DDS
A92: 89 | C92: 189 | D92: 2089-01-01 | E92: MALE | F92: KARNA | G92: BBB | H92: SSDDF
A93: 90 | C93: 190 | D93: 2090-01-01 | E93: MALE | F93: RAJA | G93: DFD | H93: GAG
A94: 91 | C94: 191 | D94: 2091-01-01 | E94: MALE | F94: RAJ GURUJI | G94: RAJ | H94: DEVI
A95: 92 | C95: 192 | D95: 2092-01-01 | E95: MALE | F95: MONU | G95: RAAA | H95: DDD
A96: 93 | C96: 193 | D96: 2093-01-01 | E96: MALE | F96: SONU | G96: AAA | H96: DDS
A97: 94 | C97: 194 | D97: 2094-01-01 | E97: MALE | F97: KARNA | G97: BBB | H97: SSDDF
A98: 95 | C98: 195 | D98: 2095-01-01 | E98: MALE | F98: RAJA | G98: DFD | H98: GAG
A99: 96 | C99: 196 | D99: 2096-01-01 | E99: MALE | F99: RAJ GURUJI | G99: RAJ | H99: DEVI
A100: 97 | C100: 197 | D100: 2097-01-01 | E100: MALE | F100: MONU | G100: RAAA | H100: DDD
A101: 98 | C101: 198 | D101: 2098-01-01 | E101: MALE | F101: SONU | G101: AAA | H101: DDS
A102: 99 | C102: 199 | D102: 2099-01-01 | E102: MALE | F102: KARNA | G102: BBB | H102: SSDDF
A103: 100 | C103: 200 | D103: 2100-01-01 | E103: MALE | F103: RAJA | G103: DFD | H103: GAG

Sheet Admit Card
A1: =IF('School Info'!$B$4="","",'School Info'!$B$4) -> Mahatma Gandhi Government School Bar
C2: School Aff. Code : | E2: =IF('School Info'!$F$5="","",'School Info'!$F$5) -> 123456
C3: =IF('School Info'!$H$5="","",'School Info'!$H$5) -> HALF YEARLY EXAM | E3: =IF('School Info'!$H$7="","",'School Info'!$H$7) -> 2025-26
C4: ADMIT CARD | I4: 1
A6: ROLL NO : | B6: =VLOOKUP(I4,Student_data,3,0) -> 101 | D6: CLASS : | E6: =IF('School Info'!$B$7="","",'School Info'!$B$7) -> 6 | F6: DOB : | G6: =VLOOKUP(I4,Student_data,4,0) -> 2001-01-01
A7: NAME : | B7: =VLOOKUP(I4,Student_data,6,0) -> RAJ GURUJI | D7: MEDUIM : | E7: =IF('School Info'!$E$7="","",'School Info'!$E$7) -> HINDI | F7: GENDER : | G7: =VLOOKUP(I4,Student_data,5,0) -> MALE
A8: FATHER : | B8: =VLOOKUP(I4,Student_data,7,0) -> RAJ | D8: SECTION : | E8: =IF('School Info'!$F$8="","",'School Info'!$F$8) -> A | F8: S.No. : | G8: =VLOOKUP(I4,Student_data,2,0) -> 755
A9: MOTHER : | B9: =VLOOKUP(I4,Student_data,8,0) -> DEVI | D9: School DISE Code : | F9: =IF('School Info'!$B$5="","",'School Info'!$B$5) -> 123456890
A11: SUBJECT | B11: DATE | C11: DAY | D11: TIME
A12: =IF('School Info'!$J$5="","",'School Info'!$J$5) -> HINDI | B12: =IF('School Info'!$K$5="","",'School Info'!$K$5) -> 2001-01-01 | C12: =IF('School Info'!$L$5="","",'School Info'!$L$5) -> MONDAY | D12: =IF('School Info'!$M$5="","",'School Info'!$M$5) -> 10:00AM TO 12:00PM
A13: =IF('School Info'!$J$6="","",'School Info'!$J$6) -> ENGLISH | B13: =IF('School Info'!$K$6="","",'School Info'!$K$6) -> 2001-01-01 | C13: =IF('School Info'!$L$6="","",'School Info'!$L$6) -> TUESDAY | D13: =IF('School Info'!$M$6="","",'School Info'!$M$6) -> 10:00AM TO 12:00PM
A14: =IF('School Info'!$J$7="","",'School Info'!$J$7) -> SCIENCE | B14: =IF('School Info'!$K$7="","",'School Info'!$K$7) -> 2001-01-01 | C14: =IF('School Info'!$L$7="","",'School Info'!$L$7) -> WEDNESDAY | D14: =IF('School Info'!$M$7="","",'School Info'!$M$7) -> 10:00AM TO 12:00PM
A15: =IF('School Info'!$J$8="","",'School Info'!$J$8) -> MATH | B15: =IF('School Info'!$K$8="","",'School Info'!$K$8) -> 2001-01-01 | C15: =IF('School Info'!$L$8="","",'School Info'!$L$8) -> THURSDAY | D15: =IF('School Info'!$M$8="","",'School Info'!$M$8) -> 10:00AM TO 12:00PM
A16: =IF('School Info'!$J$9="","",'School Info'!$J$9) -> SOCIAL SCIENCE | B16: =IF('School Info'!$K$9="","",'School Info'!$K$9) -> 2001-01-01 | C16: =IF('School Info'!$L$9="","",'School Info'!$L$9) -> FRIDAY | D16: =IF('School Info'!$M$9="","",'School Info'!$M$9) -> 10:00AM TO 12:00PM
A17: =IF('School Info'!$J$10="","",'School Info'!$J$10) -> SANSKRIT | B17: =IF('School Info'!$K$10="","",'School Info'!$K$10) -> 2001-01-01 | C17: =IF('School Info'!$L$10="","",'School Info'!$L$10) -> SATURDAY | D17: =IF('School Info'!$M$10="","",'School Info'!$M$10) -> 10:00AM TO 12:00PM
A18: =IF('School Info'!$J$11="","",'School Info'!$J$11) ->  | B18: =IF('School Info'!$K$11="","",'School Info'!$K$11) -> 2001-01-02 | C18: =IF('School Info'!$L$11="","",'School Info'!$L$11) -> SUNDAY | D18: =IF('School Info'!$M$11="","",'School Info'!$M$11) -> 10:00AM TO 12:00PM
A19: =IF('School Info'!$J$12="","",'School Info'!$J$12) ->  | B19: =IF('School Info'!$K$12="","",'School Info'!$K$12) -> 2001-01-03 | C19: =IF('School Info'!$L$12="","",'School Info'!$L$12) -> MONDAY | D19: =IF('School Info'!$M$12="","",'School Info'!$M$12) -> 10:00AM TO 12:00PM
A20: =IF('School Info'!$J$13="","",'School Info'!$J$13) ->  | B20: =IF('School Info'!$K$13="","",'School Info'!$K$13) -> 2001-01-04 | C20: =IF('School Info'!$L$13="","",'School Info'!$L$13) -> TUESDAY | D20: =IF('School Info'!$M$13="","",'School Info'!$M$13) -> 10:00AM TO 12:00PM
A21: =IF('School Info'!$J$14="","",'School Info'!$J$14) ->  | B21: =IF('School Info'!$K$14="","",'School Info'!$K$14) ->  | C21: =IF('School Info'!$L$14="","",'School Info'!$L$14) ->  | D21: =IF('School Info'!$M$14="","",'School Info'!$M$14) -> 
A23: Note :
A24: 1. परीक्षार्थी अपना प्रवेश पत्र रोजाना साथ लेकर आये | (Candidates should bring their admit card with them daily.)
A25: 2. परीक्षार्थी परीक्षा केंद्र पर आधा घंटे पहले पहुचें | (Candidates should reach the examination center half an hour before.)
A26: 3. परीक्षार्थी परीक्षा हेतु आवश्यक सामग्री साथ लेकर आवें | (Candidates should bring with them the necessary materials for the examination.)
A32: Sig. Exam Incharge | G32: Sig. Principal
A33: .------------------------------------------------------- Cut Here------------------------------------------------------
A34: =IF('School Info'!$B$4="","",'School Info'!$B$4) -> Mahatma Gandhi Government School Bar
C35: School Aff. Code : | E35: =IF('School Info'!$F$5="","",'School Info'!$F$5) -> 123456
C36: =IF('School Info'!$H$5="","",'School Info'!$H$5) -> HALF YEARLY EXAM | E36: =IF('School Info'!$H$7="","",'School Info'!$H$7) -> 2025-26
C37: ADMIT CARD | I37: =I4+1 -> 2
A39: ROLL NO : | B39: =VLOOKUP(I37,Student_data,3,0) -> 102 | D39: CLASS : | E39: =IF('School Info'!$B$7="","",'School Info'!$B$7) -> 6 | F39: DOB : | G39: =VLOOKUP(I37,Student_data,4,0) -> 2002-01-01
A40: NAME : | B40: =VLOOKUP(I37,Student_data,6,0) -> lala | D40: MEDUIM : | E40: =IF('School Info'!$E$7="","",'School Info'!$E$7) -> HINDI | F40: GENDER : | G40: =VLOOKUP(I37,Student_data,5,0) -> FEMALE
A41: FATHER : | B41: =VLOOKUP(I37,Student_data,7,0) -> RAAA | D41: SECTION : | E41: =IF('School Info'!$F$8="","",'School Info'!$F$8) -> A | F41: S.No. : | G41: =VLOOKUP(I37,Student_data,2,0) -> 852
A42: MOTHER : | B42: =VLOOKUP(I37,Student_data,8,0) -> DDD | D42: School DISE Code : | F42: =IF('School Info'!$B$5="","",'School Info'!$B$5) -> 123456890
A44: SUBJECT | B44: DATE | C44: DAY | D44: TIME
A45: =IF('School Info'!$J$5="","",'School Info'!$J$5) -> HINDI | B45: =IF('School Info'!$K$5="","",'School Info'!$K$5) -> 2001-01-01 | C45: =IF('School Info'!$L$5="","",'School Info'!$L$5) -> MONDAY | D45: =IF('School Info'!$M$5="","",'School Info'!$M$5) -> 10:00AM TO 12:00PM
A46: =IF('School Info'!$J$6="","",'School Info'!$J$6) -> ENGLISH | B46: =IF('School Info'!$K$6="","",'School Info'!$K$6) -> 2001-01-01 | C46: =IF('School Info'!$L$6="","",'School Info'!$L$6) -> TUESDAY | D46: =IF('School Info'!$M$6="","",'School Info'!$M$6) -> 10:00AM TO 12:00PM
A47: =IF('School Info'!$J$7="","",'School Info'!$J$7) -> SCIENCE | B47: =IF('School Info'!$K$7="","",'School Info'!$K$7) -> 2001-01-01 | C47: =IF('School Info'!$L$7="","",'School Info'!$L$7) -> WEDNESDAY | D47: =IF('School Info'!$M$7="","",'School Info'!$M$7) -> 10:00AM TO 12:00PM
A48: =IF('School Info'!$J$8="","",'School Info'!$J$8) -> MATH | B48: =IF('School Info'!$K$8="","",'School Info'!$K$8) -> 2001-01-01 | C48: =IF('School Info'!$L$8="","",'School Info'!$L$8) -> THURSDAY | D48: =IF('School Info'!$M$8="","",'School Info'!$M$8) -> 10:00AM TO 12:00PM
A49: =IF('School Info'!$J$9="","",'School Info'!$J$9) -> SOCIAL SCIENCE | B49: =IF('School Info'!$K$9="","",'School Info'!$K$9) -> 2001-01-01 | C49: =IF('School Info'!$L$9="","",'School Info'!$L$9) -> FRIDAY | D49: =IF('School Info'!$M$9="","",'School Info'!$M$9) -> 10:00AM TO 12:00PM
A50: =IF('School Info'!$J$10="","",'School Info'!$J$10) -> SANSKRIT | B50: =IF('School Info'!$K$10="","",'School Info'!$K$10) -> 2001-01-01 | C50: =IF('School Info'!$L$10="","",'School Info'!$L$10) -> SATURDAY | D50: =IF('School Info'!$M$10="","",'School Info'!$M$10) -> 10:00AM TO 12:00PM
A51: =IF('School Info'!$J$11="","",'School Info'!$J$11) ->  | B51: =IF('School Info'!$K$11="","",'School Info'!$K$11) -> 2001-01-02 | C51: =IF('School Info'!$L$11="","",'School Info'!$L$11) -> SUNDAY | D51: =IF('School Info'!$M$11="","",'School Info'!$M$11) -> 10:00AM TO 12:00PM
A52: =IF('School Info'!$J$12="","",'School Info'!$J$12) ->  | B52: =IF('School Info'!$K$12="","",'School Info'!$K$12) -> 2001-01-03 | C52: =IF('School Info'!$L$12="","",'School Info'!$L$12) -> MONDAY | D52: =IF('School Info'!$M$12="","",'School Info'!$M$12) -> 10:00AM TO 12:00PM
A53: =IF('School Info'!$J$13="","",'School Info'!$J$13) ->  | B53: =IF('School Info'!$K$13="","",'School Info'!$K$13) -> 2001-01-04 | C53: =IF('School Info'!$L$13="","",'School Info'!$L$13) -> TUESDAY | D53: =IF('School Info'!$M$13="","",'School Info'!$M$13) -> 10:00AM TO 12:00PM
A54: =IF('School Info'!$J$14="","",'School Info'!$J$14) ->  | B54: =IF('School Info'!$K$14="","",'School Info'!$K$14) ->  | C54: =IF('School Info'!$L$14="","",'School Info'!$L$14) ->  | D54: =IF('School Info'!$M$14="","",'School Info'!$M$14) -> 
A56: Note :
A57: 1. परीक्षार्थी अपना प्रवेश पत्र रोजाना साथ लेकर आये | (Candidates should bring their admit card with them daily.)
A58: 2. परीक्षार्थी परीक्षा केंद्र पर आधा घंटे पहले पहुचें | (Candidates should reach the examination center half an hour before.)
A59: 3. परीक्षार्थी परीक्षा हेतु आवश्यक सामग्री साथ लेकर आवें | (Candidates should bring with them the necessary materials for the examination.)
A65: Sig. Exam Incharge | G65: Sig. Principal
A67: =IF('School Info'!$B$4="","",'School Info'!$B$4) -> Mahatma Gandhi Government School Bar
C68: School Aff. Code : | E68: =IF('School Info'!$F$5="","",'School Info'!$F$5) -> 123456
C69: =IF('School Info'!$H$5="","",'School Info'!$H$5) -> HALF YEARLY EXAM | E69: =IF('School Info'!$H$7="","",'School Info'!$H$7) -> 2025-26
C70: ADMIT CARD | I70: =I37+1 -> 3
A72: ROLL NO : | B72: =VLOOKUP(I70,Student_data,3,0) -> 103 | D72: CLASS : | E72: =IF('School Info'!$B$7="","",'School Info'!$B$7) -> 6 | F72: DOB : | G72: =VLOOKUP(I70,Student_data,4,0) -> 2003-01-01
A73: NAME : | B73: =VLOOKUP(I70,Student_data,6,0) -> SONU | D73: MEDUIM : | E73: =IF('School Info'!$E$7="","",'School Info'!$E$7) -> HINDI | F73: GENDER : | G73: =VLOOKUP(I70,Student_data,5,0) -> FEMALE
A74: FATHER : | B74: =VLOOKUP(I70,Student_data,7,0) -> AAA | D74: SECTION : | E74: =IF('School Info'!$F$8="","",'School Info'!$F$8) -> A | F74: S.No. : | G74: =VLOOKUP(I70,Student_data,2,0) -> 901
A75: MOTHER : | B75: =VLOOKUP(I70,Student_data,8,0) -> DDS | D75: School DISE Code : | F75: =IF('School Info'!$B$5="","",'School Info'!$B$5) -> 123456890
A77: SUBJECT | B77: DATE | C77: DAY | D77: TIME
A78: =IF('School Info'!$J$5="","",'School Info'!$J$5) -> HINDI | B78: =IF('School Info'!$K$5="","",'School Info'!$K$5) -> 2001-01-01 | C78: =IF('School Info'!$L$5="","",'School Info'!$L$5) -> MONDAY | D78: =IF('School Info'!$M$5="","",'School Info'!$M$5) -> 10:00AM TO 12:00PM
A79: =IF('School Info'!$J$6="","",'School Info'!$J$6) -> ENGLISH | B79: =IF('School Info'!$K$6="","",'School Info'!$K$6) -> 2001-01-01 | C79: =IF('School Info'!$L$6="","",'School Info'!$L$6) -> TUESDAY | D79: =IF('School Info'!$M$6="","",'School Info'!$M$6) -> 10:00AM TO 12:00PM
A80: =IF('School Info'!$J$7="","",'School Info'!$J$7) -> SCIENCE | B80: =IF('School Info'!$K$7="","",'School Info'!$K$7) -> 2001-01-01 | C80: =IF('School Info'!$L$7="","",'School Info'!$L$7) -> WEDNESDAY | D80: =IF('School Info'!$M$7="","",'School Info'!$M$7) -> 10:00AM TO 12:00PM
A81: =IF('School Info'!$J$8="","",'School Info'!$J$8) -> MATH | B81: =IF('School Info'!$K$8="","",'School Info'!$K$8) -> 2001-01-01 | C81: =IF('School Info'!$L$8="","",'School Info'!$L$8) -> THURSDAY | D81: =IF('School Info'!$M$8="","",'School Info'!$M$8) -> 10:00AM TO 12:00PM
A82: =IF('School Info'!$J$9="","",'School Info'!$J$9) -> SOCIAL SCIENCE | B82: =IF('School Info'!$K$9="","",'School Info'!$K$9) -> 2001-01-01 | C82: =IF('School Info'!$L$9="","",'School Info'!$L$9) -> FRIDAY | D82: =IF('School Info'!$M$9="","",'School Info'!$M$9) -> 10:00AM TO 12:00PM
A83: =IF('School Info'!$J$10="","",'School Info'!$J$10) -> SANSKRIT | B83: =IF('School Info'!$K$10="","",'School Info'!$K$10) -> 2001-01-01 | C83: =IF('School Info'!$L$10="","",'School Info'!$L$10) -> SATURDAY | D83: =IF('School Info'!$M$10="","",'School Info'!$M$10) -> 10:00AM TO 12:00PM
A84: =IF('School Info'!$J$11="","",'School Info'!$J$11) ->  | B84: =IF('School Info'!$K$11="","",'School Info'!$K$11) -> 2001-01-02 | C84: =IF('School Info'!$L$11="","",'School Info'!$L$11) -> SUNDAY | D84: =IF('School Info'!$M$11="","",'School Info'!$M$11) -> 10:00AM TO 12:00PM
A85: =IF('School Info'!$J$12="","",'School Info'!$J$12) ->  | B85: =IF('School Info'!$K$12="","",'School Info'!$K$12) -> 2001-01-03 | C85: =IF('School Info'!$L$12="","",'School Info'!$L$12) -> MONDAY | D85: =IF('School Info'!$M$12="","",'School Info'!$M$12) -> 10:00AM TO 12:00PM
A86: =IF('School Info'!$J$13="","",'School Info'!$J$13) ->  | B86: =IF('School Info'!$K$13="","",'School Info'!$K$13) -> 2001-01-04 | C86: =IF('School Info'!$L$13="","",'School Info'!$L$13) -> TUESDAY | D86: =IF('School Info'!$M$13="","",'School Info'!$M$13) -> 10:00AM TO 12:00PM
A87: =IF('School Info'!$J$14="","",'School Info'!$J$14) ->  | B87: =IF('School Info'!$K$14="","",'School Info'!$K$14) ->  | C87: =IF('School Info'!$L$14="","",'School Info'!$L$14) ->  | D87: =IF('School Info'!$M$14="","",'School Info'!$M$14) -> 
A89: Note :
A90: 1. परीक्षार्थी अपना प्रवेश पत्र रोजाना साथ लेकर आये | (Candidates should bring their admit card with them daily.)
A91: 2. परीक्षार्थी परीक्षा केंद्र पर आधा घंटे पहले पहुचें | (Candidates should reach the examination center half an hour before.)
A92: 3. परीक्षार्थी परीक्षा हेतु आवश्यक सामग्री साथ लेकर आवें | (Candidates should bring with them the necessary materials for the examination.)
A98: Sig. Exam Incharge | G98: Sig. Principal
A99: .------------------------------------------------------- Cut Here------------------------------------------------------
A100: =IF('School Info'!$B$4="","",'School Info'!$B$4) -> Mahatma Gandhi Government School Bar
C101: School Aff. Code : | E101: =IF('School Info'!$F$5="","",'School Info'!$F$5) -> 123456
C102: =IF('School Info'!$H$5="","",'School Info'!$H$5) -> HALF YEARLY EXAM | E102: =IF('School Info'!$H$7="","",'School Info'!$H$7) -> 2025-26
C103: ADMIT CARD | I103: =I70+1 -> 4
A105: ROLL NO : | B105: =VLOOKUP(I103,Student_data,3,0) -> 104 | D105: CLASS : | E105: =IF('School Info'!$B$7="","",'School Info'!$B$7) -> 6 | F105: DOB : | G105: =VLOOKUP(I103,Student_data,4,0) -> 2004-01-01
A106: NAME : | B106: =VLOOKUP(I103,Student_data,6,0) -> KARNA | D106: MEDUIM : | E106: =IF('School Info'!$E$7="","",'School Info'!$E$7) -> HINDI | F106: GENDER : | G106: =VLOOKUP(I103,Student_data,5,0) -> MALE
A107: FATHER : | B107: =VLOOKUP(I103,Student_data,7,0) -> BBB | D107: SECTION : | E107: =IF('School Info'!$F$8="","",'School Info'!$F$8) -> A | F107: S.No. : | G107: =VLOOKUP(I103,Student_data,2,0) -> 222
A108: MOTHER : | B108: =VLOOKUP(I103,Student_data,8,0) -> SSDDF | D108: School DISE Code : | F108: =IF('School Info'!$B$5="","",'School Info'!$B$5) -> 123456890
A110: SUBJECT | B110: DATE | C110: DAY | D110: TIME
A111: =IF('School Info'!$J$5="","",'School Info'!$J$5) -> HINDI | B111: =IF('School Info'!$K$5="","",'School Info'!$K$5) -> 2001-01-01 | C111: =IF('School Info'!$L$5="","",'School Info'!$L$5) -> MONDAY | D111: =IF('School Info'!$M$5="","",'School Info'!$M$5) -> 10:00AM TO 12:00PM
A112: =IF('School Info'!$J$6="","",'School Info'!$J$6) -> ENGLISH | B112: =IF('School Info'!$K$6="","",'School Info'!$K$6) -> 2001-01-01 | C112: =IF('School Info'!$L$6="","",'School Info'!$L$6) -> TUESDAY | D112: =IF('School Info'!$M$6="","",'School Info'!$M$6) -> 10:00AM TO 12:00PM
A113: =IF('School Info'!$J$7="","",'School Info'!$J$7) -> SCIENCE | B113: =IF('School Info'!$K$7="","",'School Info'!$K$7) -> 2001-01-01 | C113: =IF('School Info'!$L$7="","",'School Info'!$L$7) -> WEDNESDAY | D113: =IF('School Info'!$M$7="","",'School Info'!$M$7) -> 10:00AM TO 12:00PM
A114: =IF('School Info'!$J$8="","",'School Info'!$J$8) -> MATH | B114: =IF('School Info'!$K$8="","",'School Info'!$K$8) -> 2001-01-01 | C114: =IF('School Info'!$L$8="","",'School Info'!$L$8) -> THURSDAY | D114: =IF('School Info'!$M$8="","",'School Info'!$M$8) -> 10:00AM TO 12:00PM
A115: =IF('School Info'!$J$9="","",'School Info'!$J$9) -> SOCIAL SCIENCE | B115: =IF('School Info'!$K$9="","",'School Info'!$K$9) -> 2001-01-01 | C115: =IF('School Info'!$L$9="","",'School Info'!$L$9) -> FRIDAY | D115: =IF('School Info'!$M$9="","",'School Info'!$M$9) -> 10:00AM TO 12:00PM
A116: =IF('School Info'!$J$10="","",'School Info'!$J$10) -> SANSKRIT | B116: =IF('School Info'!$K$10="","",'School Info'!$K$10) -> 2001-01-01 | C116: =IF('School Info'!$L$10="","",'School Info'!$L$10) -> SATURDAY | D116: =IF('School Info'!$M$10="","",'School Info'!$M$10) -> 10:00AM TO 12:00PM
A117: =IF('School Info'!$J$11="","",'School Info'!$J$11) ->  | B117: =IF('School Info'!$K$11="","",'School Info'!$K$11) -> 2001-01-02 | C117: =IF('School Info'!$L$11="","",'School Info'!$L$11) -> SUNDAY | D117: =IF('School Info'!$M$11="","",'School Info'!$M$11) -> 10:00AM TO 12:00PM
A118: =IF('School Info'!$J$12="","",'School Info'!$J$12) ->  | B118: =IF('School Info'!$K$12="","",'School Info'!$K$12) -> 2001-01-03 | C118: =IF('School Info'!$L$12="","",'School Info'!$L$12) -> MONDAY | D118: =IF('School Info'!$M$12="","",'School Info'!$M$12) -> 10:00AM TO 12:00PM
A119: =IF('School Info'!$J$13="","",'School Info'!$J$13) ->  | B119: =IF('School Info'!$K$13="","",'School Info'!$K$13) -> 2001-01-04 | C119: =IF('School Info'!$L$13="","",'School Info'!$L$13) -> TUESDAY | D119: =IF('School Info'!$M$13="","",'School Info'!$M$13) -> 10:00AM TO 12:00PM
A120: =IF('School Info'!$J$14="","",'School Info'!$J$14) ->  | B120: =IF('School Info'!$K$14="","",'School Info'!$K$14) ->  | C120: =IF('School Info'!$L$14="","",'School Info'!$L$14) ->  | D120: =IF('School Info'!$M$14="","",'School Info'!$M$14) -> 
A121: Note :
A122: 1. परीक्षार्थी अपना प्रवेश पत्र रोजाना साथ लेकर आये | (Candidates should bring their admit card with them daily.)
A123: 2. परीक्षार्थी परीक्षा केंद्र पर आधा घंटे पहले पहुचें | (Candidates should reach the examination center half an hour before.)
A124: 3. परीक्षार्थी परीक्षा हेतु आवश्यक सामग्री साथ लेकर आवें | (Candidates should bring with them the necessary materials for the examination.)
A130: Sig. Exam Incharge | G130: Sig. Principal
A132: =IF('School Info'!$B$4="","",'School Info'!$B$4) -> Mahatma Gandhi Government School Bar
C133: School Aff. Code : | E133: =IF('School Info'!$F$5="","",'School Info'!$F$5) -> 123456
C134: =IF('School Info'!$H$5="","",'School Info'!$H$5) -> HALF YEARLY EXAM | E134: =IF('School Info'!$H$7="","",'School Info'!$H$7) -> 2025-26
C135: ADMIT CARD | I135: =I103+1 -> 5
A137: ROLL NO : | B137: =VLOOKUP(I135,Student_data,3,0) -> 105 | D137: CLASS : | E137: =IF('School Info'!$B$7="","",'School Info'!$B$7) -> 6 | F137: DOB : | G137: =VLOOKUP(I135,Student_data,4,0) -> 2005-01-01
A138: NAME : | B138: =VLOOKUP(I135,Student_data,6,0) -> RAJA | D138: MEDUIM : | E138: =IF('School Info'!$E$7="","",'School Info'!$E$7) -> HINDI | F138: GENDER : | G138: =VLOOKUP(I135,Student_data,5,0) -> MALE
A139: FATHER : | B139: =VLOOKUP(I135,Student_data,7,0) -> DFD | D139: SECTION : | E139: =IF('School Info'!$F$8="","",'School Info'!$F$8) -> A | F139: S.No. : | G139: =VLOOKUP(I135,Student_data,2,0) -> 333
A140: MOTHER : | B140: =VLOOKUP(I135,Student_data,8,0) -> GAG | D140: School DISE Code : | F140: =IF('School Info'!$B$5="","",'School Info'!$B$5) -> 123456890
A142: SUBJECT | B142: DATE | C142: DAY | D142: TIME
A143: =IF('School Info'!$J$5="","",'School Info'!$J$5) -> HINDI | B143: =IF('School Info'!$K$5="","",'School Info'!$K$5) -> 2001-01-01 | C143: =IF('School Info'!$L$5="","",'School Info'!$L$5) -> MONDAY | D143: =IF('School Info'!$M$5="","",'School Info'!$M$5) -> 10:00AM TO 12:00PM
A144: =IF('School Info'!$J$6="","",'School Info'!$J$6) -> ENGLISH | B144: =IF('School Info'!$K$6="","",'School Info'!$K$6) -> 2001-01-01 | C144: =IF('School Info'!$L$6="","",'School Info'!$L$6) -> TUESDAY | D144: =IF('School Info'!$M$6="","",'School Info'!$M$6) -> 10:00AM TO 12:00PM
A145: =IF('School Info'!$J$7="","",'School Info'!$J$7) -> SCIENCE | B145: =IF('School Info'!$K$7="","",'School Info'!$K$7) -> 2001-01-01 | C145: =IF('School Info'!$L$7="","",'School Info'!$L$7) -> WEDNESDAY | D145: =IF('School Info'!$M$7="","",'School Info'!$M$7) -> 10:00AM TO 12:00PM
A146: =IF('School Info'!$J$8="","",'School Info'!$J$8) -> MATH | B146: =IF('School Info'!$K$8="","",'School Info'!$K$8) -> 2001-01-01 | C146: =IF('School Info'!$L$8="","",'School Info'!$L$8) -> THURSDAY | D146: =IF('School Info'!$M$8="","",'School Info'!$M$8) -> 10:00AM TO 12:00PM
A147: =IF('School Info'!$J$9="","",'School Info'!$J$9) -> SOCIAL SCIENCE | B147: =IF('School Info'!$K$9="","",'School Info'!$K$9) -> 2001-01-01 | C147: =IF('School Info'!$L$9="","",'School Info'!$L$9) -> FRIDAY | D147: =IF('School Info'!$M$9="","",'School Info'!$M$9) -> 10:00AM TO 12:00PM
A148: =IF('School Info'!$J$10="","",'School Info'!$J$10) -> SANSKRIT | B148: =IF('School Info'!$K$10="","",'School Info'!$K$10) -> 2001-01-01 | C148: =IF('School Info'!$L$10="","",'School Info'!$L$10) -> SATURDAY | D148: =IF('School Info'!$M$10="","",'School Info'!$M$10) -> 10:00AM TO 12:00PM
A149: =IF('School Info'!$J$11="","",'School Info'!$J$11) ->  | B149: =IF('School Info'!$K$11="","",'School Info'!$K$11) -> 2001-01-02 | C149: =IF('School Info'!$L$11="","",'School Info'!$L$11) -> SUNDAY | D149: =IF('School Info'!$M$11="","",'School Info'!$M$11) -> 10:00AM TO 12:00PM
A150: =IF('School Info'!$J$12="","",'School Info'!$J$12) ->  | B150: =IF('School Info'!$K$12="","",'School Info'!$K$12) -> 2001-01-03 | C150: =IF('School Info'!$L$12="","",'School Info'!$L$12) -> MONDAY | D150: =IF('School Info'!$M$12="","",'School Info'!$M$12) -> 10:00AM TO 12:00PM
A151: =IF('School Info'!$J$13="","",'School Info'!$J$13) ->  | B151: =IF('School Info'!$K$13="","",'School Info'!$K$13) -> 2001-01-04 | C151: =IF('School Info'!$L$13="","",'School Info'!$L$13) -> TUESDAY | D151: =IF('School Info'!$M$13="","",'School Info'!$M$13) -> 10:00AM TO 12:00PM
A152: =IF('School Info'!$J$14="","",'School Info'!$J$14) ->  | B152: =IF('School Info'!$K$14="","",'School Info'!$K$14) ->  | C152: =IF('School Info'!$L$14="","",'School Info'!$L$14) ->  | D152: =IF('School Info'!$M$14="","",'School Info'!$M$14) -> 
A154: Note :
A155: 1. परीक्षार्थी अपना प्रवेश पत्र रोजाना साथ लेकर आये | (Candidates should bring their admit card with them daily.)
A156: 2. परीक्षार्थी परीक्षा केंद्र पर आधा घंटे पहले पहुचें | (Candidates should reach the examination center half an hour before.)
A157: 3. परीक्षार्थी परीक्षा हेतु आवश्यक सामग्री साथ लेकर आवें | (Candidates should bring with them the necessary materials for the examination.)
A163: Sig. Exam Incharge | G163: Sig. Principal
A164: .------------------------------------------------------- Cut Here------------------------------------------------------
A165: =IF('School Info'!$B$4="","",'School Info'!$B$4) -> Mahatma Gandhi Government School Bar
C166: School Aff. Code : | E166: =IF('School Info'!$F$5="","",'School Info'!$F$5) -> 123456
C167: =IF('School Info'!$H$5="","",'School Info'!$H$5) -> HALF YEARLY EXAM | E167: =IF('School Info'!$H$7="","",'School Info'!$H$7) -> 2025-26
C168: ADMIT CARD | I168: =I135+1 -> 6
A170: ROLL NO : | B170: =VLOOKUP(I168,Student_data,3,0) -> 106 | D170: CLASS : | E170: =IF('School Info'!$B$7="","",'School Info'!$B$7) -> 6 | F170: DOB : | G170: =VLOOKUP(I168,Student_data,4,0) -> 2006-01-01
A171: NAME : | B171: =VLOOKUP(I168,Student_data,6,0) -> RAJ GURUJI | D171: MEDUIM : | E171: =IF('School Info'!$E$7="","",'School Info'!$E$7) -> HINDI | F171: GENDER : | G171: =VLOOKUP(I168,Student_data,5,0) -> FEMALE
A172: FATHER : | B172: =VLOOKUP(I168,Student_data,7,0) -> RAJ | D172: SECTION : | E172: =IF('School Info'!$F$8="","",'School Info'!$F$8) -> A | F172: S.No. : | G172: =VLOOKUP(I168,Student_data,2,0) -> 444
A173: MOTHER : | B173: =VLOOKUP(I168,Student_data,8,0) -> DEVI | D173: School DISE Code : | F173: =IF('School Info'!$B$5="","",'School Info'!$B$5) -> 123456890
A175: SUBJECT | B175: DATE | C175: DAY | D175: TIME
A176: =IF('School Info'!$J$5="","",'School Info'!$J$5) -> HINDI | B176: =IF('School Info'!$K$5="","",'School Info'!$K$5) -> 2001-01-01 | C176: =IF('School Info'!$L$5="","",'School Info'!$L$5) -> MONDAY | D176: =IF('School Info'!$M$5="","",'School Info'!$M$5) -> 10:00AM TO 12:00PM
A177: =IF('School Info'!$J$6="","",'School Info'!$J$6) -> ENGLISH | B177: =IF('School Info'!$K$6="","",'School Info'!$K$6) -> 2001-01-01 | C177: =IF('School Info'!$L$6="","",'School Info'!$L$6) -> TUESDAY | D177: =IF('School Info'!$M$6="","",'School Info'!$M$6) -> 10:00AM TO 12:00PM
A178: =IF('School Info'!$J$7="","",'School Info'!$J$7) -> SCIENCE | B178: =IF('School Info'!$K$7="","",'School Info'!$K$7) -> 2001-01-01 | C178: =IF('School Info'!$L$7="","",'School Info'!$L$7) -> WEDNESDAY | D178: =IF('School Info'!$M$7="","",'School Info'!$M$7) -> 10:00AM TO 12:00PM
A179: =IF('School Info'!$J$8="","",'School Info'!$J$8) -> MATH | B179: =IF('School Info'!$K$8="","",'School Info'!$K$8) -> 2001-01-01 | C179: =IF('School Info'!$L$8="","",'School Info'!$L$8) -> THURSDAY | D179: =IF('School Info'!$M$8="","",'School Info'!$M$8) -> 10:00AM TO 12:00PM
A180: =IF('School Info'!$J$9="","",'School Info'!$J$9) -> SOCIAL SCIENCE | B180: =IF('School Info'!$K$9="","",'School Info'!$K$9) -> 2001-01-01 | C180: =IF('School Info'!$L$9="","",'School Info'!$L$9) -> FRIDAY | D180: =IF('School Info'!$M$9="","",'School Info'!$M$9) -> 10:00AM TO 12:00PM
A181: =IF('School Info'!$J$10="","",'School Info'!$J$10) -> SANSKRIT | B181: =IF('School Info'!$K$10="","",'School Info'!$K$10) -> 2001-01-01 | C181: =IF('School Info'!$L$10="","",'School Info'!$L$10) -> SATURDAY | D181: =IF('School Info'!$M$10="","",'School Info'!$M$10) -> 10:00AM TO 12:00PM
A182: =IF('School Info'!$J$11="","",'School Info'!$J$11) ->  | B182: =IF('School Info'!$K$11="","",'School Info'!$K$11) -> 2001-01-02 | C182: =IF('School Info'!$L$11="","",'School Info'!$L$11) -> SUNDAY | D182: =IF('School Info'!$M$11="","",'School Info'!$M$11) -> 10:00AM TO 12:00PM
A183: =IF('School Info'!$J$12="","",'School Info'!$J$12) ->  | B183: =IF('School Info'!$K$12="","",'School Info'!$K$12) -> 2001-01-03 | C183: =IF('School Info'!$L$12="","",'School Info'!$L$12) -> MONDAY | D183: =IF('School Info'!$M$12="","",'School Info'!$M$12) -> 10:00AM TO 12:00PM
A184: =IF('School Info'!$J$13="","",'School Info'!$J$13) ->  | B184: =IF('School Info'!$K$13="","",'School Info'!$K$13) -> 2001-01-04 | C184: =IF('School Info'!$L$13="","",'School Info'!$L$13) -> TUESDAY | D184: =IF('School Info'!$M$13="","",'School Info'!$M$13) -> 10:00AM TO 12:00PM
A185: =IF('School Info'!$J$14="","",'School Info'!$J$14) ->  | B185: =IF('School Info'!$K$14="","",'School Info'!$K$14) ->  | C185: =IF('School Info'!$L$14="","",'School Info'!$L$14) ->  | D185: =IF('School Info'!$M$14="","",'School Info'!$M$14) -> 
A187: Note :
A188: 1. परीक्षार्थी अपना प्रवेश पत्र रोजाना साथ लेकर आये | (Candidates should bring their admit card with them daily.)
A189: 2. परीक्षार्थी परीक्षा केंद्र पर आधा घंटे पहले पहुचें | (Candidates should reach the examination center half an hour before.)
A190: 3. परीक्षार्थी परीक्षा हेतु आवश्यक सामग्री साथ लेकर आवें | (Candidates should bring with them the necessary materials for the examination.)
A196: Sig. Exam Incharge | G196: Sig. Principal
A198: =IF('School Info'!$B$4="","",'School Info'!$B$4) -> Mahatma Gandhi Government School Bar
C199: School Aff. Code : | E199: =IF('School Info'!$F$5="","",'School Info'!$F$5) -> 123456
C200: =IF('School Info'!$H$5="","",'School Info'!$H$5) -> HALF YEARLY EXAM | E200: =IF('School Info'!$H$7="","",'School Info'!$H$7) -> 2025-26
C201: ADMIT CARD | I201: =I168+1 -> 7
A203: ROLL NO : | B203: =VLOOKUP(I201,Student_data,3,0) -> 107 | D203: CLASS : | E203: =IF('School Info'!$B$7="","",'School Info'!$B$7) -> 6 | F203: DOB : | G203: =VLOOKUP(I201,Student_data,4,0) -> 2007-01-01
A204: NAME : | B204: =VLOOKUP(I201,Student_data,6,0) -> MONU | D204: MEDUIM : | E204: =IF('School Info'!$E$7="","",'School Info'!$E$7) -> HINDI | F204: GENDER : | G204: =VLOOKUP(I201,Student_data,5,0) -> MALE
A205: FATHER : | B205: =VLOOKUP(I201,Student_data,7,0) -> RAAA | D205: SECTION : | E205: =IF('School Info'!$F$8="","",'School Info'!$F$8) -> A | F205: S.No. : | G205: =VLOOKUP(I201,Student_data,2,0) -> 555
A206: MOTHER : | B206: =VLOOKUP(I201,Student_data,8,0) -> DDD | D206: School DISE Code : | F206: =IF('School Info'!$B$5="","",'School Info'!$B$5) -> 123456890
A208: SUBJECT | B208: DATE | C208: DAY | D208: TIME
A209: =IF('School Info'!$J$5="","",'School Info'!$J$5) -> HINDI | B209: =IF('School Info'!$K$5="","",'School Info'!$K$5) -> 2001-01-01 | C209: =IF('School Info'!$L$5="","",'School Info'!$L$5) -> MONDAY | D209: =IF('School Info'!$M$5="","",'School Info'!$M$5) -> 10:00AM TO 12:00PM
A210: =IF('School Info'!$J$6="","",'School Info'!$J$6) -> ENGLISH | B210: =IF('School Info'!$K$6="","",'School Info'!$K$6) -> 2001-01-01 | C210: =IF('School Info'!$L$6="","",'School Info'!$L$6) -> TUESDAY | D210: =IF('School Info'!$M$6="","",'School Info'!$M$6) -> 10:00AM TO 12:00PM
A211: =IF('School Info'!$J$7="","",'School Info'!$J$7) -> SCIENCE | B211: =IF('School Info'!$K$7="","",'School Info'!$K$7) -> 2001-01-01 | C211: =IF('School Info'!$L$7="","",'School Info'!$L$7) -> WEDNESDAY | D211: =IF('School Info'!$M$7="","",'School Info'!$M$7) -> 10:00AM TO 12:00PM
A212: =IF('School Info'!$J$8="","",'School Info'!$J$8) -> MATH | B212: =IF('School Info'!$K$8="","",'School Info'!$K$8) -> 2001-01-01 | C212: =IF('School Info'!$L$8="","",'School Info'!$L$8) -> THURSDAY | D212: =IF('School Info'!$M$8="","",'School Info'!$M$8) -> 10:00AM TO 12:00PM
A213: =IF('School Info'!$J$9="","",'School Info'!$J$9) -> SOCIAL SCIENCE | B213: =IF('School Info'!$K$9="","",'School Info'!$K$9) -> 2001-01-01 | C213: =IF('School Info'!$L$9="","",'School Info'!$L$9) -> FRIDAY | D213: =IF('School Info'!$M$9="","",'School Info'!$M$9) -> 10:00AM TO 12:00PM
A214: =IF('School Info'!$J$10="","",'School Info'!$J$10) -> SANSKRIT | B214: =IF('School Info'!$K$10="","",'School Info'!$K$10) -> 2001-01-01 | C214: =IF('School Info'!$L$10="","",'School Info'!$L$10) -> SATURDAY | D214: =IF('School Info'!$M$10="","",'School Info'!$M$10) -> 10:00AM TO 12:00PM
A215: =IF('School Info'!$J$11="","",'School Info'!$J$11) ->  | B215: =IF('School Info'!$K$11="","",'School Info'!$K$11) -> 2001-01-02 | C215: =IF('School Info'!$L$11="","",'School Info'!$L$11) -> SUNDAY | D215: =IF('School Info'!$M$11="","",'School Info'!$M$11) -> 10:00AM TO 12:00PM
A216: =IF('School Info'!$J$12="","",'School Info'!$J$12) ->  | B216: =IF('School Info'!$K$12="","",'School Info'!$K$12) -> 2001-01-03 | C216: =IF('School Info'!$L$12="","",'School Info'!$L$12) -> MONDAY | D216: =IF('School Info'!$M$12="","",'School Info'!$M$12) -> 10:00AM TO 12:00PM
A217: =IF('School Info'!$J$13="","",'School Info'!$J$13) ->  | B217: =IF('School Info'!$K$13="","",'School Info'!$K$13) -> 2001-01-04 | C217: =IF('School Info'!$L$13="","",'School Info'!$L$13) -> TUESDAY | D217: =IF('School Info'!$M$13="","",'School Info'!$M$13) -> 10:00AM TO 12:00PM
A218: =IF('School Info'!$J$14="","",'School Info'!$J$14) ->  | B218: =IF('School Info'!$K$14="","",'School Info'!$K$14) ->  | C218: =IF('School Info'!$L$14="","",'School Info'!$L$14) ->  | D218: =IF('School Info'!$M$14="","",'School Info'!$M$14) -> 
A220: Note :
A221: 1. परीक्षार्थी अपना प्रवेश पत्र रोजाना साथ लेकर आये | (Candidates should bring their admit card with them daily.)
A222: 2. परीक्षार्थी परीक्षा केंद्र पर आधा घंटे पहले पहुचें | (Candidates should reach the examination center half an hour before.)
A223: 3. परीक्षार्थी परीक्षा हेतु आवश्यक सामग्री साथ लेकर आवें | (Candidates should bring with them the necessary materials for the examination.)
A229: Sig. Exam Incharge | G229: Sig. Principal
A230: .------------------------------------------------------- Cut Here------------------------------------------------------
A231: =IF('School Info'!$B$4="","",'School Info'!$B$4) -> Mahatma Gandhi Government School Bar
C232: School Aff. Code : | E232: =IF('School Info'!$F$5="","",'School Info'!$F$5) -> 123456
C233: =IF('School Info'!$H$5="","",'School Info'!$H$5) -> HALF YEARLY EXAM | E233: =IF('School Info'!$H$7="","",'School Info'!$H$7) -> 2025-26
C234: ADMIT CARD | I234: =I201+1 -> 8
A236: ROLL NO : | B236: =VLOOKUP(I234,Student_data,3,0) -> 108 | D236: CLASS : | E236: =IF('School Info'!$B$7="","",'School Info'!$B$7) -> 6 | F236: DOB : | G236: =VLOOKUP(I234,Student_data,4,0) -> 2008-01-01
A237: NAME : | B237: =VLOOKUP(I234,Student_data,6,0) -> SONU | D237: MEDUIM : | E237: =IF('School Info'!$E$7="","",'School Info'!$E$7) -> HINDI | F237: GENDER : | G237: =VLOOKUP(I234,Student_data,5,0) -> FEMALE
A238: FATHER : | B238: =VLOOKUP(I234,Student_data,7,0) -> AAA | D238: SECTION : | E238: =IF('School Info'!$F$8="","",'School Info'!$F$8) -> A | F238: S.No. : | G238: =VLOOKUP(I234,Student_data,2,0) -> 666
A239: MOTHER : | B239: =VLOOKUP(I234,Student_data,8,0) -> DDS | D239: School DISE Code : | F239: =IF('School Info'!$B$5="","",'School Info'!$B$5) -> 123456890
A241: SUBJECT | B241: DATE | C241: DAY | D241: TIME
A242: =IF('School Info'!$J$5="","",'School Info'!$J$5) -> HINDI | B242: =IF('School Info'!$K$5="","",'School Info'!$K$5) -> 2001-01-01 | C242: =IF('School Info'!$L$5="","",'School Info'!$L$5) -> MONDAY | D242: =IF('School Info'!$M$5="","",'School Info'!$M$5) -> 10:00AM TO 12:00PM
A243: =IF('School Info'!$J$6="","",'School Info'!$J$6) -> ENGLISH | B243: =IF('School Info'!$K$6="","",'School Info'!$K$6) -> 2001-01-01 | C243: =IF('School Info'!$L$6="","",'School Info'!$L$6) -> TUESDAY | D243: =IF('School Info'!$M$6="","",'School Info'!$M$6) -> 10:00AM TO 12:00PM
A244: =IF('School Info'!$J$7="","",'School Info'!$J$7) -> SCIENCE | B244: =IF('School Info'!$K$7="","",'School Info'!$K$7) -> 2001-01-01 | C244: =IF('School Info'!$L$7="","",'School Info'!$L$7) -> WEDNESDAY | D244: =IF('School Info'!$M$7="","",'School Info'!$M$7) -> 10:00AM TO 12:00PM
A245: =IF('School Info'!$J$8="","",'School Info'!$J$8) -> MATH | B245: =IF('School Info'!$K$8="","",'School Info'!$K$8) -> 2001-01-01 | C245: =IF('School Info'!$L$8="","",'School Info'!$L$8) -> THURSDAY | D245: =IF('School Info'!$M$8="","",'School Info'!$M$8) -> 10:00AM TO 12:00PM
A246: =IF('School Info'!$J$9="","",'School Info'!$J$9) -> SOCIAL SCIENCE | B246: =IF('School Info'!$K$9="","",'School Info'!$K$9) -> 2001-01-01 | C246: =IF('School Info'!$L$9="","",'School Info'!$L$9) -> FRIDAY | D246: =IF('School Info'!$M$9="","",'School Info'!$M$9) -> 10:00AM TO 12:00PM
A247: =IF('School Info'!$J$10="","",'School Info'!$J$10) -> SANSKRIT | B247: =IF('School Info'!$K$10="","",'School Info'!$K$10) -> 2001-01-01 | C247: =IF('School Info'!$L$10="","",'School Info'!$L$10) -> SATURDAY | D247: =IF('School Info'!$M$10="","",'School Info'!$M$10) -> 10:00AM TO 12:00PM
A248: =IF('School Info'!$J$11="","",'School Info'!$J$11) ->  | B248: =IF('School Info'!$K$11="","",'School Info'!$K$11) -> 2001-01-02 | C248: =IF('School Info'!$L$11="","",'School Info'!$L$11) -> SUNDAY | D248: =IF('School Info'!$M$11="","",'School Info'!$M$11) -> 10:00AM TO 12:00PM
A249: =IF('School Info'!$J$12="","",'School Info'!$J$12) ->  | B249: =IF('School Info'!$K$12="","",'School Info'!$K$12) -> 2001-01-03 | C249: =IF('School Info'!$L$12="","",'School Info'!$L$12) -> MONDAY | D249: =IF('School Info'!$M$12="","",'School Info'!$M$12) -> 10:00AM TO 12:00PM
A250: =IF('School Info'!$J$13="","",'School Info'!$J$13) ->  | B250: =IF('School Info'!$K$13="","",'School Info'!$K$13) -> 2001-01-04 | C250: =IF('School Info'!$L$13="","",'School Info'!$L$13) -> TUESDAY | D250: =IF('School Info'!$M$13="","",'School Info'!$M$13) -> 10:00AM TO 12:00PM
A251: =IF('School Info'!$J$14="","",'School Info'!$J$14) ->  | B251: =IF('School Info'!$K$14="","",'School Info'!$K$14) ->  | C251: =IF('School Info'!$L$14="","",'School Info'!$L$14) ->  | D251: =IF('School Info'!$M$14="","",'School Info'!$M$14) -> 
A253: Note :
A254: 1. परीक्षार्थी अपना प्रवेश पत्र रोजाना साथ लेकर आये | (Candidates should bring their admit card with them daily.)
A255: 2. परीक्षार्थी परीक्षा केंद्र पर आधा घंटे पहले पहुचें | (Candidates should reach the examination center half an hour before.)
A256: 3. परीक्षार्थी परीक्षा हेतु आवश्यक सामग्री साथ लेकर आवें | (Candidates should bring with them the necessary materials for the examination.)
A262: Sig. Exam Incharge | G262: Sig. Principal
A264: =IF('School Info'!$B$4="","",'School Info'!$B$4) -> Mahatma Gandhi Government School Bar
C265: School Aff. Code : | E265: =IF('School Info'!$F$5="","",'School Info'!$F$5) -> 123456
C266: =IF('School Info'!$H$5="","",'School Info'!$H$5) -> HALF YEARLY EXAM | E266: =IF('School Info'!$H$7="","",'School Info'!$H$7) -> 2025-26
C267: ADMIT CARD | I267: =I234+1 -> 9
... 2018 more rows

Sheet Single Admit Card
A1: =IF('School Info'!$B$4="","",'School Info'!$B$4) -> Mahatma Gandhi Government School Bar
C2: School Aff. Code : | E2: =IF('School Info'!$F$5="","",'School Info'!$F$5) -> 123456
C3: =IF('School Info'!$H$5="","",'School Info'!$H$5) -> HALF YEARLY EXAM | E3: =IF('School Info'!$H$7="","",'School Info'!$H$7) -> 2025-26 | J3: Print Single Admit Card
C4: ADMIT CARD | J4: Type Serial No "Data Sheet" | L4: 1
A6: ROLL NO : | B6: =VLOOKUP(L4,Student_data,3,0) -> 101 | D6: CLASS : | E6: =IF('School Info'!$B$7="","",'School Info'!$B$7) -> 6 | F6: DOB : | G6: =VLOOKUP(L4,Student_data,4,0) -> 2001-01-01
A7: NAME : | B7: =VLOOKUP(L4,Student_data,6,0) -> RAJ GURUJI | D7: MEDUIM : | E7: =IF('School Info'!$E$7="","",'School Info'!$E$7) -> HINDI | F7: GENDER : | G7: =VLOOKUP(L4,Student_data,5,0) -> MALE
A8: FATHER : | B8: =VLOOKUP(L4,Student_data,7,0) -> RAJ | D8: SECTION : | E8: =IF('School Info'!$F$8="","",'School Info'!$F$8) -> A | F8: S.No. : | G8: =VLOOKUP(L4,Student_data,2,0) -> 755 | L8: TYPE STUDENT Serial NO MAIN DATA SHEET | N8: CHANGE SERIAL NO UP (↑↓)DOWN ARROW
A9: MOTHER : | B9: =VLOOKUP(L4,Student_data,8,0) -> DEVI | D9: School DISE Code : | F9: =IF('School Info'!$B$5="","",'School Info'!$B$5) -> 123456890
A11: SUBJECT | B11: DATE | C11: DAY | D11: TIME | F11: =IF('School Info'!N4="","",'School Info'!N4) ->  | G11: =IF('School Info'!O4="","",'School Info'!O4) -> 
A12: =IF('School Info'!$J$5="","",'School Info'!$J$5) -> HINDI | B12: =IF('School Info'!$K$5="","",'School Info'!$K$5) -> 2001-01-01 | C12: =IF('School Info'!$L$5="","",'School Info'!$L$5) -> MONDAY | D12: =IF('School Info'!$M$5="","",'School Info'!$M$5) -> 10:00AM TO 12:00PM | F12: =IF('School Info'!N5="","",'School Info'!N5) ->  | G12: =IF('School Info'!O5="","",'School Info'!O5) -> 
A13: =IF('School Info'!$J$6="","",'School Info'!$J$6) -> ENGLISH | B13: =IF('School Info'!$K$6="","",'School Info'!$K$6) -> 2001-01-01 | C13: =IF('School Info'!$L$6="","",'School Info'!$L$6) -> TUESDAY | D13: =IF('School Info'!$M$6="","",'School Info'!$M$6) -> 10:00AM TO 12:00PM | F13: =IF('School Info'!N6="","",'School Info'!N6) ->  | G13: =IF('School Info'!O6="","",'School Info'!O6) -> 
A14: =IF('School Info'!$J$7="","",'School Info'!$J$7) -> SCIENCE | B14: =IF('School Info'!$K$7="","",'School Info'!$K$7) -> 2001-01-01 | C14: =IF('School Info'!$L$7="","",'School Info'!$L$7) -> WEDNESDAY | D14: =IF('School Info'!$M$7="","",'School Info'!$M$7) -> 10:00AM TO 12:00PM | F14: =IF('School Info'!N7="","",'School Info'!N7) ->  | G14: =IF('School Info'!O7="","",'School Info'!O7) -> 
A15: =IF('School Info'!$J$8="","",'School Info'!$J$8) -> MATH | B15: =IF('School Info'!$K$8="","",'School Info'!$K$8) -> 2001-01-01 | C15: =IF('School Info'!$L$8="","",'School Info'!$L$8) -> THURSDAY | D15: =IF('School Info'!$M$8="","",'School Info'!$M$8) -> 10:00AM TO 12:00PM | F15: =IF('School Info'!N8="","",'School Info'!N8) ->  | G15: =IF('School Info'!O8="","",'School Info'!O8) -> 
A16: =IF('School Info'!$J$9="","",'School Info'!$J$9) -> SOCIAL SCIENCE | B16: =IF('School Info'!$K$9="","",'School Info'!$K$9) -> 2001-01-01 | C16: =IF('School Info'!$L$9="","",'School Info'!$L$9) -> FRIDAY | D16: =IF('School Info'!$M$9="","",'School Info'!$M$9) -> 10:00AM TO 12:00PM | F16: =IF('School Info'!N9="","",'School Info'!N9) ->  | G16: =IF('School Info'!O9="","",'School Info'!O9) -> 
A17: =IF('School Info'!$J$10="","",'School Info'!$J$10) -> SANSKRIT | B17: =IF('School Info'!$K$10="","",'School Info'!$K$10) -> 2001-01-01 | C17: =IF('School Info'!$L$10="","",'School Info'!$L$10) -> SATURDAY | D17: =IF('School Info'!$M$10="","",'School Info'!$M$10) -> 10:00AM TO 12:00PM | F17: =IF('School Info'!N10="","",'School Info'!N10) ->  | G17: =IF('School Info'!O10="","",'School Info'!O10) -> 
A18: =IF('School Info'!$J$11="","",'School Info'!$J$11) ->  | B18: =IF('School Info'!$K$11="","",'School Info'!$K$11) -> 2001-01-02 | C18: =IF('School Info'!$L$11="","",'School Info'!$L$11) -> SUNDAY | D18: =IF('School Info'!$M$11="","",'School Info'!$M$11) -> 10:00AM TO 12:00PM
A19: =IF('School Info'!$J$12="","",'School Info'!$J$12) ->  | B19: =IF('School Info'!$K$12="","",'School Info'!$K$12) -> 2001-01-03 | C19: =IF('School Info'!$L$12="","",'School Info'!$L$12) -> MONDAY | D19: =IF('School Info'!$M$12="","",'School Info'!$M$12) -> 10:00AM TO 12:00PM
A20: =IF('School Info'!$J$13="","",'School Info'!$J$13) ->  | B20: =IF('School Info'!$K$13="","",'School Info'!$K$13) -> 2001-01-04 | C20: =IF('School Info'!$L$13="","",'School Info'!$L$13) -> TUESDAY | D20: =IF('School Info'!$M$13="","",'School Info'!$M$13) -> 10:00AM TO 12:00PM
A21: =IF('School Info'!$J$14="","",'School Info'!$J$14) ->  | B21: =IF('School Info'!$K$14="","",'School Info'!$K$14) ->  | C21: =IF('School Info'!$L$14="","",'School Info'!$L$14) ->  | D21: =IF('School Info'!$M$14="","",'School Info'!$M$14) -> 
A23: Note :
A24: 1. परीक्षार्थी अपना प्रवेश पत्र रोजाना साथ लेकर आये | (Candidates should bring their admit card with them daily.)
A25: 2. परीक्षार्थी परीक्षा केंद्र पर आधा घंटे पहले पहुचें | (Candidates should reach the examination center half an hour before.)
A26: 3. परीक्षार्थी परीक्षा हेतु आवश्यक सामग्री साथ लेकर आवें | (Candidates should bring with them the necessary materials for the examination.)
A32: Sig. Exam Incharge | G32: Sig. Principal
A33: .------------------------------------------------------- Cut Here------------------------------------------------------
A34: =IF('School Info'!$B$4="","",'School Info'!$B$4) -> Mahatma Gandhi Government School Bar
C35: School Aff. Code : | E35: =IF('School Info'!$F$5="","",'School Info'!$F$5) -> 123456
C36: =IF('School Info'!$H$5="","",'School Info'!$H$5) -> HALF YEARLY EXAM | E36: =IF('School Info'!$H$7="","",'School Info'!$H$7) -> 2025-26
C37: ADMIT CARD | L37: =L4+1 -> 2
A39: ROLL NO : | B39: =VLOOKUP(L37,Student_data,3,0) -> 102 | D39: CLASS : | E39: =IF('School Info'!$B$7="","",'School Info'!$B$7) -> 6 | F39: DOB : | G39: =VLOOKUP(L37,Student_data,4,0) -> 2002-01-01
A40: NAME : | B40: =VLOOKUP(L37,Student_data,6,0) -> lala | D40: MEDUIM : | E40: =IF('School Info'!$E$7="","",'School Info'!$E$7) -> HINDI | F40: GENDER : | G40: =VLOOKUP(L37,Student_data,5,0) -> FEMALE
A41: FATHER : | B41: =VLOOKUP(L37,Student_data,7,0) -> RAAA | D41: SECTION : | E41: =IF('School Info'!$F$8="","",'School Info'!$F$8) -> A | F41: S.No. : | G41: =VLOOKUP(L37,Student_data,2,0) -> 852
A42: MOTHER : | B42: =VLOOKUP(L37,Student_data,8,0) -> DDD | D42: School DISE Code : | F42: =IF('School Info'!$B$5="","",'School Info'!$B$5) -> 123456890
A44: SUBJECT | B44: DATE | C44: DAY | D44: TIME | F44: =IF('School Info'!N4="","",'School Info'!N4) ->  | G44: =IF('School Info'!O4="","",'School Info'!O4) -> 
A45: =IF('School Info'!$J$5="","",'School Info'!$J$5) -> HINDI | B45: =IF('School Info'!$K$5="","",'School Info'!$K$5) -> 2001-01-01 | C45: =IF('School Info'!$L$5="","",'School Info'!$L$5) -> MONDAY | D45: =IF('School Info'!$M$5="","",'School Info'!$M$5) -> 10:00AM TO 12:00PM | F45: =IF('School Info'!N5="","",'School Info'!N5) ->  | G45: =IF('School Info'!O5="","",'School Info'!O5) -> 
A46: =IF('School Info'!$J$6="","",'School Info'!$J$6) -> ENGLISH | B46: =IF('School Info'!$K$6="","",'School Info'!$K$6) -> 2001-01-01 | C46: =IF('School Info'!$L$6="","",'School Info'!$L$6) -> TUESDAY | D46: =IF('School Info'!$M$6="","",'School Info'!$M$6) -> 10:00AM TO 12:00PM | F46: =IF('School Info'!N6="","",'School Info'!N6) ->  | G46: =IF('School Info'!O6="","",'School Info'!O6) -> 
A47: =IF('School Info'!$J$7="","",'School Info'!$J$7) -> SCIENCE | B47: =IF('School Info'!$K$7="","",'School Info'!$K$7) -> 2001-01-01 | C47: =IF('School Info'!$L$7="","",'School Info'!$L$7) -> WEDNESDAY | D47: =IF('School Info'!$M$7="","",'School Info'!$M$7) -> 10:00AM TO 12:00PM | F47: =IF('School Info'!N7="","",'School Info'!N7) ->  | G47: =IF('School Info'!O7="","",'School Info'!O7) -> 
A48: =IF('School Info'!$J$8="","",'School Info'!$J$8) -> MATH | B48: =IF('School Info'!$K$8="","",'School Info'!$K$8) -> 2001-01-01 | C48: =IF('School Info'!$L$8="","",'School Info'!$L$8) -> THURSDAY | D48: =IF('School Info'!$M$8="","",'School Info'!$M$8) -> 10:00AM TO 12:00PM | F48: =IF('School Info'!N8="","",'School Info'!N8) ->  | G48: =IF('School Info'!O8="","",'School Info'!O8) -> 
A49: =IF('School Info'!$J$9="","",'School Info'!$J$9) -> SOCIAL SCIENCE | B49: =IF('School Info'!$K$9="","",'School Info'!$K$9) -> 2001-01-01 | C49: =IF('School Info'!$L$9="","",'School Info'!$L$9) -> FRIDAY | D49: =IF('School Info'!$M$9="","",'School Info'!$M$9) -> 10:00AM TO 12:00PM | F49: =IF('School Info'!N9="","",'School Info'!N9) ->  | G49: =IF('School Info'!O9="","",'School Info'!O9) -> 
A50: =IF('School Info'!$J$10="","",'School Info'!$J$10) -> SANSKRIT | B50: =IF('School Info'!$K$10="","",'School Info'!$K$10) -> 2001-01-01 | C50: =IF('School Info'!$L$10="","",'School Info'!$L$10) -> SATURDAY | D50: =IF('School Info'!$M$10="","",'School Info'!$M$10) -> 10:00AM TO 12:00PM | F50: =IF('School Info'!N10="","",'School Info'!N10) ->  | G50: =IF('School Info'!O10="","",'School Info'!O10) -> 
A51: =IF('School Info'!$J$11="","",'School Info'!$J$11) ->  | B51: =IF('School Info'!$K$11="","",'School Info'!$K$11) -> 2001-01-02 | C51: =IF('School Info'!$L$11="","",'School Info'!$L$11) -> SUNDAY | D51: =IF('School Info'!$M$11="","",'School Info'!$M$11) -> 10:00AM TO 12:00PM
A52: =IF('School Info'!$J$12="","",'School Info'!$J$12) ->  | B52: =IF('School Info'!$K$12="","",'School Info'!$K$12) -> 2001-01-03 | C52: =IF('School Info'!$L$12="","",'School Info'!$L$12) -> MONDAY | D52: =IF('School Info'!$M$12="","",'School Info'!$M$12) -> 10:00AM TO 12:00PM
A53: =IF('School Info'!$J$13="","",'School Info'!$J$13) ->  | B53: =IF('School Info'!$K$13="","",'School Info'!$K$13) -> 2001-01-04 | C53: =IF('School Info'!$L$13="","",'School Info'!$L$13) -> TUESDAY | D53: =IF('School Info'!$M$13="","",'School Info'!$M$13) -> 10:00AM TO 12:00PM
A54: =IF('School Info'!$J$14="","",'School Info'!$J$14) ->  | B54: =IF('School Info'!$K$14="","",'School Info'!$K$14) ->  | C54: =IF('School Info'!$L$14="","",'School Info'!$L$14) ->  | D54: =IF('School Info'!$M$14="","",'School Info'!$M$14) -> 
A56: Note :
A57: 1. परीक्षार्थी अपना प्रवेश पत्र रोजाना साथ लेकर आये | (Candidates should bring their admit card with them daily.)
A58: 2. परीक्षार्थी परीक्षा केंद्र पर आधा घंटे पहले पहुचें | (Candidates should reach the examination center half an hour before.)
A59: 3. परीक्षार्थी परीक्षा हेतु आवश्यक सामग्री साथ लेकर आवें | (Candidates should bring with them the necessary materials for the examination.)
A65: Sig. Exam Incharge | G65: Sig. Principal

Sheet Admit Card With Photo
A1: =IF('School Info'!$B$4="","",'School Info'!$B$4) -> Mahatma Gandhi Government School Bar
C2: School Aff. Code : | E2: =IF('School Info'!$F$5="","",'School Info'!$F$5) -> 123456
C3: =IF('School Info'!$H$5="","",'School Info'!$H$5) -> HALF YEARLY EXAM | E3: =IF('School Info'!$H$7="","",'School Info'!$H$7) -> 2025-26 | J3: Print Single Admit Card
C4: ADMIT CARD
J5: Type Serial No "Data Sheet" | L5: 3
A6: ROLL NO : | B6: =VLOOKUP(L5,Student_data,3,0) -> 103 | D6: CLASS : | E6: =IF('School Info'!$B$7="","",'School Info'!$B$7) -> 6 | F6: DOB : | G6: =VLOOKUP(L5,Student_data,4,0) -> 2003-01-01
A7: NAME : | B7: =VLOOKUP(L5,Student_data,6,0) -> SONU | D7: MEDUIM : | E7: =IF('School Info'!$E$7="","",'School Info'!$E$7) -> HINDI | F7: GENDER : | G7: =VLOOKUP(L5,Student_data,5,0) -> FEMALE
A8: FATHER : | B8: =VLOOKUP(L5,Student_data,7,0) -> AAA | D8: SECTION : | E8: =IF('School Info'!$F$8="","",'School Info'!$F$8) -> A | F8: S.No. : | G8: =VLOOKUP(L5,Student_data,2,0) -> 901
A9: MOTHER : | B9: =VLOOKUP(L5,Student_data,8,0) -> DDS | D9: School DISE Code : | F9: =IF('School Info'!$B$5="","",'School Info'!$B$5) -> 123456890 | L9: TYPE STUDENT Serial No MAIN DATA SHEET | N9: CHANGE SERIAL NO UP (↑↓)DOWN ARROW
F10: Student Photo
A11: SUBJECT | B11: DATE | C11: DAY | D11: TIME
A12: =IF('School Info'!$J$5="","",'School Info'!$J$5) -> HINDI | B12: =IF('School Info'!$K$5="","",'School Info'!$K$5) -> 2001-01-01 | C12: =IF('School Info'!$L$5="","",'School Info'!$L$5) -> MONDAY | D12: =IF('School Info'!$M$5="","",'School Info'!$M$5) -> 10:00AM TO 12:00PM
A13: =IF('School Info'!$J$6="","",'School Info'!$J$6) -> ENGLISH | B13: =IF('School Info'!$K$6="","",'School Info'!$K$6) -> 2001-01-01 | C13: =IF('School Info'!$L$6="","",'School Info'!$L$6) -> TUESDAY | D13: =IF('School Info'!$M$6="","",'School Info'!$M$6) -> 10:00AM TO 12:00PM
A14: =IF('School Info'!$J$7="","",'School Info'!$J$7) -> SCIENCE | B14: =IF('School Info'!$K$7="","",'School Info'!$K$7) -> 2001-01-01 | C14: =IF('School Info'!$L$7="","",'School Info'!$L$7) -> WEDNESDAY | D14: =IF('School Info'!$M$7="","",'School Info'!$M$7) -> 10:00AM TO 12:00PM
A15: =IF('School Info'!$J$8="","",'School Info'!$J$8) -> MATH | B15: =IF('School Info'!$K$8="","",'School Info'!$K$8) -> 2001-01-01 | C15: =IF('School Info'!$L$8="","",'School Info'!$L$8) -> THURSDAY | D15: =IF('School Info'!$M$8="","",'School Info'!$M$8) -> 10:00AM TO 12:00PM
A16: =IF('School Info'!$J$9="","",'School Info'!$J$9) -> SOCIAL SCIENCE | B16: =IF('School Info'!$K$9="","",'School Info'!$K$9) -> 2001-01-01 | C16: =IF('School Info'!$L$9="","",'School Info'!$L$9) -> FRIDAY | D16: =IF('School Info'!$M$9="","",'School Info'!$M$9) -> 10:00AM TO 12:00PM
A17: =IF('School Info'!$J$10="","",'School Info'!$J$10) -> SANSKRIT | B17: =IF('School Info'!$K$10="","",'School Info'!$K$10) -> 2001-01-01 | C17: =IF('School Info'!$L$10="","",'School Info'!$L$10) -> SATURDAY | D17: =IF('School Info'!$M$10="","",'School Info'!$M$10) -> 10:00AM TO 12:00PM
A18: =IF('School Info'!$J$11="","",'School Info'!$J$11) ->  | B18: =IF('School Info'!$K$11="","",'School Info'!$K$11) -> 2001-01-02 | C18: =IF('School Info'!$L$11="","",'School Info'!$L$11) -> SUNDAY | D18: =IF('School Info'!$M$11="","",'School Info'!$M$11) -> 10:00AM TO 12:00PM
A19: =IF('School Info'!$J$12="","",'School Info'!$J$12) ->  | B19: =IF('School Info'!$K$12="","",'School Info'!$K$12) -> 2001-01-03 | C19: =IF('School Info'!$L$12="","",'School Info'!$L$12) -> MONDAY | D19: =IF('School Info'!$M$12="","",'School Info'!$M$12) -> 10:00AM TO 12:00PM
A20: =IF('School Info'!$J$13="","",'School Info'!$J$13) ->  | B20: =IF('School Info'!$K$13="","",'School Info'!$K$13) -> 2001-01-04 | C20: =IF('School Info'!$L$13="","",'School Info'!$L$13) -> TUESDAY | D20: =IF('School Info'!$M$13="","",'School Info'!$M$13) -> 10:00AM TO 12:00PM
A21: =IF('School Info'!$J$14="","",'School Info'!$J$14) ->  | B21: =IF('School Info'!$K$14="","",'School Info'!$K$14) ->  | C21: =IF('School Info'!$L$14="","",'School Info'!$L$14) ->  | D21: =IF('School Info'!$M$14="","",'School Info'!$M$14) -> 
A23: Note :
A24: 1. परीक्षार्थी अपना प्रवेश पत्र रोजाना साथ लेकर आये | (Candidates should bring their admit card with them daily.)
A25: 2. परीक्षार्थी परीक्षा केंद्र पर आधा घंटे पहले पहुचें | (Candidates should reach the examination center half an hour before.)
A26: 3. परीक्षार्थी परीक्षा हेतु आवश्यक सामग्री साथ लेकर आवें | (Candidates should bring with them the necessary materials for the examination.)
A32: Sig. Exam Incharge | G32: Sig. Principal
A33: .------------------------------------------------------- Cut Here------------------------------------------------------
A34: =IF('School Info'!$B$4="","",'School Info'!$B$4) -> Mahatma Gandhi Government School Bar
C35: School Aff. Code : | E35: =IF('School Info'!$F$5="","",'School Info'!$F$5) -> 123456
C36: =IF('School Info'!$H$5="","",'School Info'!$H$5) -> HALF YEARLY EXAM | E36: =IF('School Info'!$H$7="","",'School Info'!$H$7) -> 2025-26
C37: ADMIT CARD | L37: =L5+1 -> 4
A39: ROLL NO : | B39: =VLOOKUP(L37,Student_data,3,0) -> 104 | D39: CLASS : | E39: =IF('School Info'!$B$7="","",'School Info'!$B$7) -> 6 | F39: DOB : | G39: =VLOOKUP(L37,Student_data,4,0) -> 2004-01-01
A40: NAME : | B40: =VLOOKUP(L37,Student_data,6,0) -> KARNA | D40: MEDUIM : | E40: =IF('School Info'!$E$7="","",'School Info'!$E$7) -> HINDI | F40: GENDER : | G40: =VLOOKUP(L37,Student_data,5,0) -> MALE
A41: FATHER : | B41: =VLOOKUP(L37,Student_data,7,0) -> BBB | D41: SECTION : | E41: =IF('School Info'!$F$8="","",'School Info'!$F$8) -> A | F41: S.No. : | G41: =VLOOKUP(L37,Student_data,2,0) -> 222
A42: MOTHER : | B42: =VLOOKUP(L37,Student_data,8,0) -> SSDDF | D42: School DISE Code : | F42: =IF('School Info'!$B$5="","",'School Info'!$B$5) -> 123456890
F43: Student Photo
A44: SUBJECT | B44: DATE | C44: DAY | D44: TIME
A45: =IF('School Info'!$J$5="","",'School Info'!$J$5) -> HINDI | B45: =IF('School Info'!$K$5="","",'School Info'!$K$5) -> 2001-01-01 | C45: =IF('School Info'!$L$5="","",'School Info'!$L$5) -> MONDAY | D45: =IF('School Info'!$M$5="","",'School Info'!$M$5) -> 10:00AM TO 12:00PM
A46: =IF('School Info'!$J$6="","",'School Info'!$J$6) -> ENGLISH | B46: =IF('School Info'!$K$6="","",'School Info'!$K$6) -> 2001-01-01 | C46: =IF('School Info'!$L$6="","",'School Info'!$L$6) -> TUESDAY | D46: =IF('School Info'!$M$6="","",'School Info'!$M$6) -> 10:00AM TO 12:00PM
A47: =IF('School Info'!$J$7="","",'School Info'!$J$7) -> SCIENCE | B47: =IF('School Info'!$K$7="","",'School Info'!$K$7) -> 2001-01-01 | C47: =IF('School Info'!$L$7="","",'School Info'!$L$7) -> WEDNESDAY | D47: =IF('School Info'!$M$7="","",'School Info'!$M$7) -> 10:00AM TO 12:00PM
A48: =IF('School Info'!$J$8="","",'School Info'!$J$8) -> MATH | B48: =IF('School Info'!$K$8="","",'School Info'!$K$8) -> 2001-01-01 | C48: =IF('School Info'!$L$8="","",'School Info'!$L$8) -> THURSDAY | D48: =IF('School Info'!$M$8="","",'School Info'!$M$8) -> 10:00AM TO 12:00PM
A49: =IF('School Info'!$J$9="","",'School Info'!$J$9) -> SOCIAL SCIENCE | B49: =IF('School Info'!$K$9="","",'School Info'!$K$9) -> 2001-01-01 | C49: =IF('School Info'!$L$9="","",'School Info'!$L$9) -> FRIDAY | D49: =IF('School Info'!$M$9="","",'School Info'!$M$9) -> 10:00AM TO 12:00PM
A50: =IF('School Info'!$J$10="","",'School Info'!$J$10) -> SANSKRIT | B50: =IF('School Info'!$K$10="","",'School Info'!$K$10) -> 2001-01-01 | C50: =IF('School Info'!$L$10="","",'School Info'!$L$10) -> SATURDAY | D50: =IF('School Info'!$M$10="","",'School Info'!$M$10) -> 10:00AM TO 12:00PM
A51: =IF('School Info'!$J$11="","",'School Info'!$J$11) ->  | B51: =IF('School Info'!$K$11="","",'School Info'!$K$11) -> 2001-01-02 | C51: =IF('School Info'!$L$11="","",'School Info'!$L$11) -> SUNDAY | D51: =IF('School Info'!$M$11="","",'School Info'!$M$11) -> 10:00AM TO 12:00PM
A52: =IF('School Info'!$J$12="","",'School Info'!$J$12) ->  | B52: =IF('School Info'!$K$12="","",'School Info'!$K$12) -> 2001-01-03 | C52: =IF('School Info'!$L$12="","",'School Info'!$L$12) -> MONDAY | D52: =IF('School Info'!$M$12="","",'School Info'!$M$12) -> 10:00AM TO 12:00PM
A53: =IF('School Info'!$J$13="","",'School Info'!$J$13) ->  | B53: =IF('School Info'!$K$13="","",'School Info'!$K$13) -> 2001-01-04 | C53: =IF('School Info'!$L$13="","",'School Info'!$L$13) -> TUESDAY | D53: =IF('School Info'!$M$13="","",'School Info'!$M$13) -> 10:00AM TO 12:00PM
A54: =IF('School Info'!$J$14="","",'School Info'!$J$14) ->  | B54: =IF('School Info'!$K$14="","",'School Info'!$K$14) ->  | C54: =IF('School Info'!$L$14="","",'School Info'!$L$14) ->  | D54: =IF('School Info'!$M$14="","",'School Info'!$M$14) -> 
A56: Note :
A57: 1. परीक्षार्थी अपना प्रवेश पत्र रोजाना साथ लेकर आये | (Candidates should bring their admit card with them daily.)
A58: 2. परीक्षार्थी परीक्षा केंद्र पर आधा घंटे पहले पहुचें | (Candidates should reach the examination center half an hour before.)
A59: 3. परीक्षार्थी परीक्षा हेतु आवश्यक सामग्री साथ लेकर आवें | (Candidates should bring with them the necessary materials for the examination.)
A65: Sig. Exam Incharge | G65: Sig. Principal
